fUST/lending_fUST_20241025
["ID","MTS","AMOUNT","RATE_DAILY","PERIOD"]
[340800090,1729852243088,-409.533245,0.00013551,2]
[340800091,1729852243097,-151.0,0.00013551,2]
[340800092,1729852243108,-151.0,0.00013551,2]
[340800093,1729852243118,-409.533245,0.00013551,2]
[340800094,1729852243128,-409.533245,0.00013551,2]
[340800095,1729852243138,-11377.8060427,0.00013551,2]
[340800096,1729852243149,-613.70393964,0.00013551,2]
[340800097,1729852243160,-250.0,0.00013553,2]
[340800098,1729852243169,-7999.52755316,0.00013561,2]
[340800099,1729852243179,-497.580291,0.00013561,2]
[340800100,1729852243188,-497.580291,0.00013561,2]
[340800101,1729852243198,-403.893002,0.00013561,2]
[340800102,1729852243207,-999.114577,0.00013561,2]
[340800103,1729852243217,-999.114577,0.00013561,2]
[340800104,1729852243228,-497.580291,0.0001358,2]
[340800105,1729852243238,-497.580291,0.0001358,2]
[340800106,1729852243249,-403.893002,0.0001358,2]
[340800107,1729852243260,-999.114577,0.0001358,2]
[340800108,1729852243269,-999.114577,0.0001358,2]
[340800109,1729852243278,-403.20391,0.0001358,2]
[340800110,1729852243287,-403.203915,0.0001358,2]
[340800111,1729852243297,-248.326197,0.0001358,2]
[340800112,1729852243306,-248.326194,0.0001358,2]
[340800113,1729852243316,-164.301143,0.0001358,2]
[340800114,1729852243325,-164.30114102,0.0001358,2]
[340800115,1729852243335,-2042.751956,0.0001358,2]
[340800116,1729852243344,-2042.751959,0.0001358,2]
[340800117,1729852243355,-409.533245,0.0001358,2]
[340800118,1729852243364,-151.0,0.0001358,2]
[340800119,1729852243374,-409.533239,0.0001358,2]
[340800120,1729852243384,-11377.8060427,0.0001358,2]
[340800121,1729852243393,-613.70393964,0.0001358,2]
[340800122,1729852243403,-151.0,0.00013588,2]
[340800123,1729852243412,-151.0,0.00013588,2]
[340800124,1729852243422,-151.0,0.00013588,2]
[340800125,1729852243432,-151.0,0.00013588,2]
[340800126,1729852243443,-173.519383,0.00013588,2]
[340800127,1729852243453,-173.519383,0.00013588,2]
[340800128,1729852243463,-151.0,0.00013588,2]
[340800129,1729852243472,-155.329229,0.00013588,2]
[340800130,1729852243481,-241.748352,0.00013588,2]
[340800131,1729852243491,-241.748352,0.00013588,2]
[340800132,1729852243500,-497.580291,0.00013588,2]
[340800133,1729852243510,-497.580286,0.00013588,2]
[340800134,1729852243521,-403.892996,0.00013588,2]
[340800135,1729852243530,-999.114577,0.00013588,2]
[340800136,1729852243540,-999.11458294,0.00013588,2]
[340800137,1729852243550,-178.177008,0.0001359,2]
[340800138,1729852243562,-173.519383,0.0001359,2]
[340800139,1729852243572,-173.519383,0.0001359,2]
[340800140,1729852243582,-173.519383,0.0001359,2]
[340800141,1729852243593,-173.519383,0.0001359,2]
[340800142,1729852243605,-241.748352,0.0001359,2]
[340800143,1729852243614,-241.748352,0.0001359,2]
[340800144,1729852243624,-241.748352,0.0001359,2]
[340800145,1729852243634,-241.748362,0.0001359,2]
[340800146,1729852243643,-11377.8060427,0.0001359,2]
[340800147,1729852243652,-613.70393964,0.0001359,2]
[340800148,1729852243662,-150.112233,0.000136,2]
[340800149,1729852243672,-150.112237,0.000136,2]
[340800150,1729852243682,-150.112233,0.000136,2]
[340800151,1729852243691,-150.112233,0.000136,2]
[340800152,1729852243701,-22741.62237961,0.000136,2]
[340800153,1729852243710,-150.112233,0.000136,2]
[340800154,1729852243719,-150.112233,0.000136,2]
[340800155,1729852243728,-173.519383,0.000136,2]
[340800156,1729852243738,-173.519383,0.000136,2]
[340800157,1729852243747,-150.112233,0.000136,2]
[340800158,1729852243756,-150.112233,0.000136,2]
[340800159,1729852243766,-150.112233,0.000136,2]
[340800160,1729852243775,-150.112233,0.000136,2]
[340800161,1729852243785,-409.620249,0.00013602,2]
[340800162,1729852243796,-233.049244,0.00013602,2]
[340800163,1729852243805,-1500.0,0.00013647,2]
[340800164,1729852243817,-1501.9335569,0.00013647,2]
[340800165,1729852243827,-302.0,0.0001365,2]
[340800166,1729852243837,-178.360917,0.00013658,2]
[340800167,1729852243846,-11377.8060427,0.00013663,2]
[340800168,1729852243857,-613.70393964,0.00013663,2]
[340800169,1729852243866,-603.6413631,0.00013673,2]
[340800170,1729852243875,-500.0,0.00013673,2]
[340800171,1729852243884,-500.0,0.00013673,2]
[340800172,1729852243894,-500.0,0.00013673,2]
[340800173,1729852243903,-500.0,0.00013673,2]
[340800174,1729852243913,-500.0,0.00013673,2]
[340800175,1729852243922,-500.0,0.00013673,2]
[340800176,1729852243931,-500.0,0.00013673,2]
[340800177,1729852243940,-500.0,0.00013673,2]
[340800178,1729852243950,-339.66131179,0.00013673,2]
[340800179,1729852243959,-500.0,0.00013673,2]
[340800180,1729852243970,-167.57457845,0.00013673,2]
[340800181,1729852243980,-500.0,0.00013673,2]
[340800182,1729852243990,-500.0,0.00013673,2]
[340800183,1729852244000,-500.0,0.00013673,2]
[340800184,1729852244009,-500.0,0.00013673,2]
[340800185,1729852244019,-500.78081132,0.00013673,2]
[340800186,1729852244028,-500.5100855,0.00013673,2]
[340800187,1729852244038,-500.0,0.00013673,2]
[340800188,1729852244047,-500.0,0.00013673,2]
[340800189,1729852244057,-160.18956368,0.00013673,2]
[340800190,1729852244067,-609.65660185,0.00013673,2]
[340800191,1729852244077,-500.0,0.00013673,2]
[340800192,1729852244087,-500.0,0.00013673,2]
[340800193,1729852244096,-505.52031337,0.00013673,2]
[340800194,1729852244107,-151.0,0.00013678,2]
[340800195,1729852244117,-151.0,0.00013688,2]
[340800196,1729852244126,-151.0,0.00013688,2]
[340800197,1729852244135,-151.0,0.00013688,2]
[340800198,1729852244145,-151.0,0.00013688,2]
[340800199,1729852244154,-45511.2241707,0.00013688,2]
[340800200,1729852244163,-3682.22363784,0.00013688,2]
[340800201,1729852244173,-669.70263362,0.00013697,2]
[340800202,1729852244182,-500.0,0.00013698,2]
[340800203,1729852244193,-228.15819495,0.00013698,2]
[340800204,1729852244202,-471.97932107,0.00013698,2]
[340800205,1729852244213,-500.0,0.00013698,2]
[340800206,1729852244222,-500.0,0.00013698,2]
[340800207,1729852244233,-411.58250629,0.00013698,2]
[340800208,1729852244243,-505.89466839,0.00013698,2]
[340800209,1729852244261,-500.0,0.00013698,2]
[340800210,1729852244286,-504.49652431,0.00013698,2]
[340800211,1729852244313,-502.20978501,0.00013698,2]
[340800212,1729852244335,-503.38619178,0.00013698,2]
[340800213,1729852244368,-503.25787872,0.00013698,2]
[340800214,1729852244436,-500.0,0.00013698,2]
[340800215,1729852244485,-151.0,0.00013698,2]
[340800216,1729852244511,-151.0,0.00013698,2]
[340800217,1729852244524,-500.0,0.00013698,2]
[340800218,1729852244534,-500.0,0.00013698,2]
[340800219,1729852244543,-151.0,0.00013698,2]
[340800220,1729852244553,-151.0,0.00013698,2]
[340800221,1729852244563,-151.0,0.00013698,2]
[340800222,1729852244572,-151.0,0.00013698,2]
[340800223,1729852244581,-345.2458021,0.00013698,2]
[340800224,1729852244591,-500.0,0.00013698,2]
[340800225,1729852244602,-502.91078089,0.00013698,2]
[340800226,1729852244611,-505.22425391,0.00013698,2]
[340800227,1729852244621,-505.8329663,0.00013698,2]
[340800228,1729852244631,-311.55474233,0.00013698,2]
[340800229,1729852244820,-541.48648034,0.00013698,2]
[340800230,1729852244830,-507.09358159,0.00013698,2]
[340800231,1729852244839,-500.0,0.00013698,2]
[340800232,1729852244850,-500.0,0.00013698,2]
[340800233,1729852244860,-500.0,0.00013698,2]
[340800234,1729852244869,-502.97354237,0.00013698,2]
[340800235,1729852244879,-504.26557807,0.00013698,2]
[340800236,1729852244889,-505.06418697,0.00013698,2]
[340800237,1729852244898,-502.19872265,0.00013698,2]
[340800238,1729852244908,-502.44087168,0.00013698,2]
[340800239,1729852244918,-505.26441176,0.00013698,2]
[340800240,1729852244928,-503.12653774,0.00013698,2]
[340800241,1729852244938,-509.89404704,0.00013698,2]
[340800242,1729852244949,-664.4,0.00013698,2]
[340800243,1729852244959,-500.0,0.00013698,2]
[340800244,1729852244969,-500.55761275,0.00013698,2]
[340800245,1729852244979,-500.0,0.00013698,2]
[340800246,1729852244990,-502.28843498,0.00013698,2]
[340800247,1729852245001,-507.72448184,0.00013698,2]
[340800248,1729852245012,-532.80359657,0.00013698,2]
[340800249,1729852245022,-513.68647764,0.00013698,2]
[340800250,1729852245033,-500.0,0.00013698,2]
[340800251,1729852245043,-1003.06,0.00013698,2]
[340800252,1729852245053,-500.0,0.00013698,2]
[340800253,1729852245064,-505.13520172,0.00013698,2]
[340800254,1729852245074,-555.54943581,0.00013698,2]
[340800255,1729852245085,-555.37,0.00013698,2]
[340800256,1729852245095,-503.91118037,0.00013698,2]
[340800257,1729852245107,-500.0,0.00013698,2]
[340800258,1729852245118,-500.0,0.00013698,2]
[340800259,1729852245129,-500.0,0.00013698,2]
[340800260,1729852245139,-502.71946461,0.00013698,2]
[340800261,1729852245149,-500.0,0.00013698,2]
[340800262,1729852245159,-502.97063729,0.00013698,2]
[340800263,1729852245169,-502.97072936,0.00013698,2]
[340800264,1729852245179,-500.0,0.00013698,2]
[340800265,1729852245190,-500.0,0.00013698,2]
[340800266,1729852245201,-500.0,0.00013698,2]
[340800267,1729852245211,-500.0,0.00013698,2]
[340800268,1729852245222,-504.32783189,0.00013698,2]
[340800269,1729852245233,-503.23089029,0.00013698,2]
[340800270,1729852245243,-506.38846495,0.00013698,2]
[340800271,1729852245254,-505.3898889,0.00013698,2]
[340800272,1729852245264,-535.98063364,0.00013698,2]
[340800273,1729852245274,-599.3134115,0.00013698,2]
[340800274,1729852245284,-571.41763066,0.00013698,2]
[340800275,1729852245295,-735.87,0.00013698,2]
[340800276,1729852245305,-500.0,0.00013698,2]
[340800277,1729852245315,-503.76241685,0.00013698,2]
[340800278,1729852245326,-505.61814254,0.00013698,2]
[340800279,1729852245336,-500.38189048,0.00013698,2]
[340800280,1729852245346,-502.21459201,0.00013698,2]
[340800281,1729852245357,-550.72558109,0.00013698,2]
[340800282,1729852245367,-515.74972745,0.00013698,2]
[340800283,1729852245376,-504.13401551,0.00013698,2]
[340800284,1729852245386,-502.17106926,0.00013698,2]
[340800285,1729852245396,-500.0,0.00013698,2]
[340800286,1729852245405,-502.64998398,0.00013698,2]
[340800287,1729852245415,-524.99397551,0.00013698,2]
[340800288,1729852245424,-500.0,0.00013698,2]
[340800289,1729852245434,-727.3,0.00013698,2]
[340800290,1729852245456,-193.67582102,0.00013698,2]
[340800291,1729852245479,-504.29989316,0.00013698,2]
[340800292,1729852245503,-525.73883241,0.00013698,2]
[340800293,1729852245523,-500.0,0.00013698,2]
[340800294,1729852245546,-500.0,0.00013698,2]
[340800295,1729852245568,-500.0,0.00013698,2]
[340800296,1729852245591,-500.0,0.00013698,2]
[340800298,1729852245615,-500.84714197,0.00013698,2]
[340800299,1729852245637,-500.30092236,0.00013698,2]
[340800300,1729852245661,-501.1379421,0.00013698,2]
[340800301,1729852245684,-500.0,0.00013698,2]
[340800302,1729852245707,-500.0,0.00013698,2]
[340800303,1729852245717,-500.0,0.00013698,2]
[340800304,1729852245728,-500.0,0.00013698,2]
[340800305,1729852245739,-502.35104079,0.00013698,2]
[340800306,1729852245749,-500.0,0.00013698,2]
[340800307,1729852245759,-500.0,0.00013698,2]
[340800308,1729852245769,-500.0,0.00013698,2]
[340800309,1729852245779,-500.0,0.00013698,2]
[340800310,1729852245788,-500.0,0.00013698,2]
[340800311,1729852245798,-500.0,0.00013698,2]
[340800312,1729852245807,-788.99,0.00013698,2]
[340800313,1729852245817,-500.0,0.00013698,2]
[340800314,1729852245828,-688.83,0.00013698,2]
[340800315,1729852245837,-500.0,0.00013698,2]
[340800317,1729852245847,-502.95614367,0.00013698,2]
[340800319,1729852245858,-500.0,0.00013698,2]
[340800320,1729852245868,-505.08987119,0.00013698,2]
[340800321,1729852245877,-500.0,0.00013698,2]
[340800322,1729852245887,-500.0,0.00013698,2]
[340800323,1729852245897,-500.0,0.00013698,2]
[340800324,1729852245908,-506.29034684,0.00013698,2]
[340800325,1729852245918,-500.0,0.00013698,2]
[340800326,1729852245928,-500.0,0.00013698,2]
[340800327,1729852245938,-500.0,0.00013698,2]
[340800328,1729852245948,-507.69165669,0.00013698,2]
[340800329,1729852245958,-500.0,0.00013698,2]
[340800330,1729852245967,-504.28203434,0.00013698,2]
[340800331,1729852245976,-500.0,0.00013698,2]
[340800332,1729852245986,-500.0,0.00013698,2]
[340800333,1729852245996,-500.0,0.00013698,2]
[340800334,1729852246006,-535.85422782,0.00013698,2]
[340800335,1729852246015,-500.0,0.00013698,2]
[340800336,1729852246025,-500.0,0.00013698,2]
[340800337,1729852246035,-500.0,0.00013698,2]
[340800338,1729852246045,-182.88060353,0.00013698,2]
[340800339,1729852246055,-305.50464313,0.00013698,2]
[340800340,1729852246065,-500.0,0.00013698,2]
[340800341,1729852246075,-500.0,0.00013698,2]
[340800342,1729852246085,-500.0,0.00013698,2]
[340800343,1729852246094,-500.0,0.00013698,2]
[340800344,1729852246104,-207.336548,0.00013698,2]
[340800345,1729852246114,-502.84384165,0.00013698,2]
[340800346,1729852246123,-919.72,0.00013698,2]
[340800347,1729852246133,-500.0,0.00013698,2]
[340800348,1729852246143,-500.0,0.00013698,2]
[340800349,1729852246152,-889.37,0.00013698,2]
[340800350,1729852246162,-500.0,0.00013698,2]
[340800351,1729852246172,-500.0,0.00013698,2]
[340800352,1729852246181,-500.0,0.00013698,2]
[340800353,1729852246192,-500.0,0.00013698,2]
[340800354,1729852246201,-500.0,0.00013698,2]
[340800355,1729852246211,-504.08164197,0.00013698,2]
[340800356,1729852246221,-500.0,0.00013698,2]
[340800357,1729852246231,-500.0,0.00013698,2]
[340800358,1729852246240,-500.0,0.00013698,2]
[340800359,1729852246250,-500.0,0.00013698,2]
[340800360,1729852246259,-572.79508158,0.00013698,2]
[340800361,1729852246269,-500.0,0.00013698,2]
[340800362,1729852246278,-502.83542622,0.00013698,2]
[340800363,1729852246288,-525.66360257,0.00013698,2]
[340800364,1729852246298,-500.0,0.00013698,2]
[340800365,1729852246308,-1352.3,0.00013698,2]
[340800366,1729852246318,-500.0,0.00013698,2]
[340800367,1729852246327,-500.0,0.00013698,2]
[340800368,1729852246337,-500.0,0.00013698,2]
[340800369,1729852246347,-501.6893153,0.00013698,2]
[340800370,1729852246358,-501.14602636,0.00013698,2]
[340800371,1729852246368,-303.92180674,0.00013698,2]
[340800372,1729852246378,-500.0,0.00013698,2]
[340800373,1729852246388,-500.0,0.00013698,2]
[340800374,1729852246397,-873.45,0.00013698,2]
[340800375,1729852246407,-500.0,0.00013698,2]
[340800376,1729852246417,-987.73,0.00013698,2]
[340800377,1729852246426,-507.65024094,0.00013698,2]
[340800378,1729852246437,-502.38057863,0.00013698,2]
[340800379,1729852246446,-500.0,0.00013698,2]
[340800380,1729852246456,-500.0,0.00013698,2]
[340800381,1729852246466,-500.0,0.00013698,2]
[340800382,1729852246477,-500.0,0.00013698,2]
[340800383,1729852246486,-495.73874074,0.00013698,2]
[340800384,1729852246495,-500.0,0.00013698,2]
[340800385,1729852246505,-309.52604578,0.00013698,2]
[340800386,1729852246518,-500.0,0.00013698,2]
[340800387,1729852246527,-531.04,0.00013698,2]
[340800388,1729852246536,-510.89992566,0.00013698,2]
[340800389,1729852246546,-500.0,0.00013698,2]
[340800390,1729852246555,-500.0,0.00013698,2]
[340800391,1729852246566,-500.0,0.00013698,2]
[340800392,1729852246577,-500.0,0.00013698,2]
[340800393,1729852246587,-500.0,0.00013698,2]
[340800394,1729852246597,-500.0,0.00013698,2]
[340800395,1729852246610,-500.0,0.00013698,2]
[340800396,1729852246620,-519.85619094,0.00013698,2]
[340800397,1729852246629,-500.64336738,0.00013698,2]
[340800398,1729852246640,-500.0,0.00013698,2]
[340800399,1729852246650,-500.0,0.00013698,2]
[340800400,1729852246661,-323.1341391,0.00013698,2]
[340800401,1729852246670,-519.90980337,0.00013698,2]
[340800402,1729852246680,-500.0,0.00013698,2]
[340800403,1729852246691,-518.7538226,0.00013698,2]
[340800404,1729852246701,-500.0,0.00013698,2]
[340800405,1729852246711,-500.0,0.00013698,2]
[340800406,1729852246721,-553.1010341,0.00013698,2]
[340800407,1729852246730,-500.0,0.00013698,2]
[340800408,1729852246739,-1099.47,0.00013698,2]
[340800409,1729852246749,-500.0,0.00013698,2]
[340800410,1729852246760,-835.01,0.00013698,2]
[340800411,1729852246770,-500.0,0.00013698,2]
[340800412,1729852246779,-500.0,0.00013698,2]
[340800413,1729852246789,-500.0,0.00013698,2]
[340800414,1729852246798,-506.74853612,0.00013698,2]
[340800415,1729852246808,-500.0,0.00013698,2]
[340800416,1729852246817,-500.0,0.00013698,2]
[340800417,1729852246829,-502.05223663,0.00013698,2]
[340800418,1729852246839,-506.36518872,0.00013698,2]
[340800419,1729852246849,-500.0,0.00013698,2]
[340800420,1729852246860,-500.0,0.00013698,2]
[340800421,1729852246870,-500.0,0.00013698,2]
[340800422,1729852246880,-500.0,0.00013698,2]
[340800423,1729852246890,-500.0,0.00013698,2]
[340800424,1729852246900,-613.02,0.00013698,2]
[340800425,1729852246909,-500.0,0.00013698,2]
[340800426,1729852246919,-508.28835341,0.00013698,2]
[340800427,1729852246928,-500.0,0.00013698,2]
[340800428,1729852246938,-1184.76,0.00013698,2]
[340800429,1729852246947,-500.84547546,0.00013698,2]
[340800430,1729852246957,-500.0,0.00013698,2]
[340800431,1729852246966,-503.6565953,0.00013698,2]
[340800432,1729852246975,-500.0,0.00013698,2]
[340800433,1729852246985,-500.0,0.00013698,2]
[340800434,1729852246995,-797.49,0.00013698,2]
[340800435,1729852247004,-500.0,0.00013698,2]
[340800436,1729852247014,-500.0,0.00013698,2]
[340800437,1729852247024,-569.24,0.00013698,2]
[340800438,1729852247033,-500.0,0.00013698,2]
[340800439,1729852247043,-642.43,0.00013698,2]
[340800440,1729852247052,-500.0,0.00013698,2]
[340800441,1729852247062,-500.0,0.00013698,2]
[340800442,1729852247072,-506.94912492,0.00013698,2]
[340800443,1729852247082,-438.29415838,0.00013698,2]
[340800444,1729852247092,-500.0,0.00013698,2]
[340800445,1729852247101,-703.79,0.00013698,2]
[340800446,1729852247111,-500.0,0.00013698,2]
[340800447,1729852247121,-609.31777328,0.00013698,2]
[340800448,1729852247130,-500.0,0.00013698,2]
[340800449,1729852247140,-500.0,0.00013698,2]
[340800450,1729852247150,-500.0,0.00013698,2]
[340800451,1729852247159,-757.14,0.00013698,2]
[340800452,1729852247169,-503.90690249,0.00013698,2]
[340800453,1729852247179,-742.6,0.00013698,2]
[340800454,1729852247188,-500.0,0.00013698,2]
[340800455,1729852247198,-500.0,0.00013698,2]
[340800456,1729852247208,-200.88662265,0.00013698,2]
[340800457,1729852247218,-151.0,0.00013698,2]
[340800458,1729852247230,-500.0,0.00013698,2]
[340800459,1729852247242,-500.0,0.00013698,2]
[340800460,1729852247251,-500.0,0.00013698,2]
[340800461,1729852247261,-502.0672976,0.00013698,2]
[340800462,1729852247270,-500.0,0.00013698,2]
[340800463,1729852247280,-500.0,0.00013698,2]
[340800464,1729852247289,-1493.34,0.00013698,2]
[340800465,1729852247299,-502.34218089,0.00013698,2]
[340800466,1729852247309,-500.0,0.00013698,2]
[340800467,1729852247318,-500.0,0.00013698,2]
[340800468,1729852247327,-500.0,0.00013698,2]
[340800469,1729852247337,-507.93947304,0.00013698,2]
[340800470,1729852247346,-483.18503608,0.00013698,2]
[340800471,1729852247356,-500.0,0.00013698,2]
[340800472,1729852247365,-2772.11,0.00013698,2]
[340800473,1729852247375,-500.0,0.00013698,2]
[340800474,1729852247384,-1325.29,0.00013698,2]
[340800475,1729852247437,-500.0,0.00013698,2]
[340800476,1729852247447,-2444.26,0.00013698,2]
[340800477,1729852247457,-500.0,0.00013698,2]
[340800478,1729852247467,-815.92,0.00013698,2]
[340800479,1729852247476,-500.0,0.00013698,2]
[340800480,1729852247486,-500.0,0.00013698,2]
[340800481,1729852247496,-500.0,0.00013698,2]
[340800482,1729852247505,-500.0,0.00013698,2]
[340800483,1729852247518,-2673.84,0.00013698,2]
[340800484,1729852247527,-508.79111489,0.00013698,2]
[340800485,1729852247537,-591.43,0.00013698,2]
[340800486,1729852247546,-1113.61,0.00013698,2]
[340800487,1729852247557,-601.25,0.00013698,2]
[340800488,1729852247566,-500.0,0.00013698,2]
[340800489,1729852247576,-532.83,0.00013698,2]
[340800490,1729852247587,-500.0,0.00013698,2]
[340800491,1729852247596,-500.0,0.00013698,2]
[340800492,1729852247606,-500.0,0.00013698,2]
[340800493,1729852247615,-500.0,0.00013698,2]
[340800494,1729852247624,-500.0,0.00013698,2]
[340800495,1729852247635,-500.0,0.00013698,2]
[340800496,1729852247644,-500.0,0.00013698,2]
[340800497,1729852247655,-250.0,0.00013698,2]
[340800498,1729852247665,-992.78,0.00013698,2]
[340800499,1729852247674,-688.55,0.00013698,2]
[340800500,1729852247684,-1103.82,0.00013698,2]
[340800501,1729852247693,-182.04362191,0.00013698,2]
[340800502,1729852247702,-696.64,0.00013698,2]
[340800503,1729852247712,-500.0,0.00013698,2]
[340800504,1729852247722,-500.0,0.00013698,2]
[340800505,1729852247732,-500.0,0.00013698,2]
[340800506,1729852247741,-500.0,0.00013698,2]
[340800507,1729852247751,-500.0,0.00013698,2]
[340800508,1729852247762,-500.0,0.00013698,2]
[340800509,1729852247772,-500.0,0.00013698,2]
[340800510,1729852247781,-1331.56,0.00013698,2]
[340800511,1729852247791,-500.0,0.00013698,2]
[340800512,1729852247800,-500.0,0.00013698,2]
[340800513,1729852247809,-500.0,0.00013698,2]
[340800514,1729852247819,-723.12,0.00013698,2]
[340800515,1729852247829,-500.0,0.00013698,2]
[340800516,1729852247840,-1368.07,0.00013698,2]
[340800517,1729852247849,-500.0,0.00013698,2]
[340800518,1729852247859,-543.32541064,0.00013698,2]
[340800519,1729852247868,-1364.19,0.00013698,2]
[340800520,1729852247878,-857.43,0.00013698,2]
[340800521,1729852247887,-500.0,0.00013698,2]
[340800522,1729852247896,-500.0,0.00013698,2]
[340800523,1729852247906,-1050.63,0.00013698,2]
[340800524,1729852247915,-500.0,0.00013698,2]
[340800525,1729852247925,-500.0,0.00013698,2]
[340800526,1729852247934,-712.24,0.00013698,2]
[340800527,1729852247943,-1499.57,0.00013698,2]
[340800528,1729852247953,-500.0,0.00013698,2]
[340800529,1729852247962,-743.87,0.00013698,2]
[340800530,1729852247972,-520.07853442,0.00013698,2]
[340800531,1729852247982,-500.0,0.00013698,2]
[340800532,1729852247991,-500.0,0.00013698,2]
[340800533,1729852248001,-500.0,0.00013698,2]
[340800534,1729852248011,-533.32737738,0.00013698,2]
[340800535,1729852248021,-1182.49,0.00013698,2]
[340800536,1729852248031,-869.5,0.00013698,2]
[340800537,1729852248040,-500.0,0.00013698,2]
[340800538,1729852248050,-500.0,0.00013698,2]
[340800539,1729852248060,-500.0,0.00013698,2]
[340800540,1729852248070,-500.0,0.00013698,2]
[340800541,1729852248079,-500.0,0.00013698,2]
[340800542,1729852248089,-500.0,0.00013698,2]
[340800543,1729852248098,-500.0,0.00013698,2]
[340800544,1729852248112,-578.86,0.00013698,2]
[340800545,1729852248122,-507.18429654,0.00013698,2]
[340800546,1729852248132,-511.61769329,0.00013698,2]
[340800547,1729852248142,-500.0,0.00013698,2]
[340800548,1729852248153,-500.0,0.00013698,2]
[340800549,1729852248162,-576.43951505,0.00013698,2]
[340800550,1729852248172,-500.0,0.00013698,2]
[340800551,1729852248181,-507.06119951,0.00013698,2]
[340800552,1729852248191,-540.45,0.00013698,2]
[340800553,1729852248200,-1405.53,0.00013698,2]
[340800554,1729852248210,-500.0,0.00013698,2]
[340800555,1729852248220,-500.0,0.00013698,2]
[340800556,1729852248231,-500.0,0.00013698,2]
[340800557,1729852248241,-500.0,0.00013698,2]
[340800558,1729852248252,-538.45740508,0.00013698,2]
[340800559,1729852248262,-500.0,0.00013698,2]
[340800560,1729852248271,-500.0,0.00013698,2]
[340800561,1729852248280,-1348.84,0.00013698,2]
[340800562,1729852248290,-500.0,0.00013698,2]
[340800563,1729852248299,-500.0,0.00013698,2]
[340800564,1729852248309,-1130.56,0.00013698,2]
[340800565,1729852248319,-500.0,0.00013698,2]
[340800566,1729852248329,-500.0,0.00013698,2]
[340800567,1729852248338,-500.0,0.00013698,2]
[340800568,1729852248348,-906.96,0.00013698,2]
[340800569,1729852248358,-500.0,0.00013698,2]
[340800570,1729852248368,-632.72,0.00013698,2]
[340800571,1729852248377,-869.53,0.00013698,2]
[340800572,1729852248387,-1159.25,0.00013698,2]
[340800573,1729852248396,-805.91,0.00013698,2]
[340800574,1729852248405,-500.0,0.00013698,2]
[340800575,1729852248415,-500.0,0.00013698,2]
[340800576,1729852248424,-500.0,0.00013698,2]
[340800577,1729852248433,-500.0,0.00013698,2]
[340800578,1729852248443,-500.0,0.00013698,2]
[340800579,1729852248452,-514.93,0.00013698,2]
[340800580,1729852248462,-500.0,0.00013698,2]
[340800581,1729852248471,-656.08,0.00013698,2]
[340800582,1729852248481,-505.81893404,0.00013698,2]
[340800583,1729852248490,-704.12,0.00013698,2]
[340800584,1729852248500,-500.0,0.00013698,2]
[340800585,1729852248511,-503.60608523,0.00013698,2]
[340800586,1729852248520,-500.0,0.00013698,2]
[340800587,1729852248530,-500.0,0.00013698,2]
[340800588,1729852248540,-952.18,0.00013698,2]
[340800589,1729852248550,-500.0,0.00013698,2]
[340800590,1729852248560,-500.0,0.00013698,2]
[340800591,1729852248571,-500.0,0.00013698,2]
[340800592,1729852248580,-858.3,0.00013698,2]